fUST/lending_fUST_20251206
["ID","MTS","AMOUNT","RATE_DAILY","PERIOD"]
[396484926,1764988238870,-646.01,0.00011915,2]
[396484927,1764988238879,-500.0,0.00011915,2]
[396484928,1764988238889,-500.0,0.00011915,2]
[396484929,1764988238899,-243.79624412,0.00011915,2]
[396484930,1764988238908,-500.0,0.00011915,2]
[396484931,1764988238918,-500.0,0.00011915,2]
[396484932,1764988238927,-355.90966002,0.00011915,2]
[396484933,1764988238937,-500.0,0.00011915,2]
[396484934,1764988238946,-500.0,0.00011915,2]
[396484935,1764988238955,-500.0,0.00011915,2]
[396484936,1764988238964,-500.0,0.00011915,2]
[396484937,1764988238974,-500.0,0.00011915,2]
[396484938,1764988238982,-500.0,0.00011915,2]
[396484939,1764988238991,-500.0,0.00011915,2]
[396484940,1764988239002,-500.0,0.00011915,2]
[396484941,1764988239011,-1009.19,0.00011915,2]
[396484942,1764988239021,-500.0,0.00011915,2]
[396484943,1764988239031,-500.0,0.00011915,2]
[396484944,1764988239041,-500.0,0.00011915,2]
[396484945,1764988239051,-500.0,0.00011915,2]
[396484946,1764988239060,-731.6,0.00011915,2]
[396484947,1764988239069,-661.56,0.00011915,2]
[396484948,1764988239079,-500.0,0.00011915,2]
[396484949,1764988239089,-676.13,0.00011915,2]
[396484950,1764988239098,-573.24,0.00011915,2]
[396484951,1764988239108,-500.0,0.00011915,2]
[396484952,1764988239117,-492.09951592,0.00011915,2]
[396484953,1764988239126,-500.0,0.00011915,2]
[396484954,1764988239136,-2445.7,0.00011915,2]
[396484955,1764988239146,-500.0,0.00011915,2]
[396484956,1764988239155,-1427.77,0.00011915,2]
[396484957,1764988239164,-500.0,0.00011915,2]
[396484958,1764988239172,-500.0,0.00011915,2]
[396484959,1764988239181,-500.0,0.00011915,2]
[396484960,1764988239191,-500.0,0.00011915,2]
[396484961,1764988239201,-500.0,0.00011915,2]
[396484962,1764988239211,-500.72,0.00011915,2]
[396484963,1764988239220,-500.0,0.00011915,2]
[396484964,1764988239230,-4806.28,0.00011915,2]
[396484965,1764988239239,-500.0,0.00011915,2]
[396484966,1764988239248,-589.52,0.00011915,2]
[396484967,1764988239258,-500.0,0.00011915,2]
[396484968,1764988239268,-1305.6,0.00011915,2]
[396484969,1764988239278,-500.0,0.00011915,2]
[396484970,1764988239287,-1517.97,0.00011915,2]
[396484971,1764988239297,-603.63,0.00011915,2]
[396484972,1764988239307,-500.0,0.00011915,2]
[396484973,1764988239319,-500.0,0.00011915,2]
[396484974,1764988239328,-500.0,0.00011915,2]
[396484975,1764988239340,-2262.64,0.00011915,2]
[396484976,1764988239349,-500.0,0.00011915,2]
[396484977,1764988239359,-500.0,0.00011915,2]
[396484978,1764988239369,-500.0,0.00011916,2]
[396484979,1764988239379,-500.0,0.00011916,2]
[396484980,1764988239388,-500.0,0.00011916,2]
[396484981,1764988239397,-500.0,0.00011916,2]
[396484982,1764988239407,-500.0,0.00011916,2]
[396484983,1764988239417,-500.0,0.00011916,2]
[396484984,1764988239426,-500.0,0.00011916,2]
[396484985,1764988239436,-500.0,0.00011916,2]
[396484986,1764988239445,-500.0,0.00011916,2]
[396484987,1764988239455,-500.0,0.00011916,2]
[396484988,1764988239464,-500.0,0.00011916,2]
[396484989,1764988239474,-500.0,0.00011916,2]
[396484990,1764988239486,-500.0,0.00011916,2]
[396484991,1764988239495,-500.0,0.00011916,2]
[396484992,1764988239505,-500.0,0.00011916,2]
[396484993,1764988239514,-500.0,0.00011916,2]
[396484994,1764988239523,-622.28722064,0.00011916,2]
[396484995,1764988239532,-500.0,0.00011916,2]
[396484996,1764988239541,-500.0,0.00011916,2]
[396484997,1764988239551,-500.0,0.00011916,2]
[396484998,1764988239560,-500.0,0.00011916,2]
[396484999,1764988239569,-500.0,0.00011916,2]
[396485000,1764988239583,-500.0,0.00011916,2]
[396485001,1764988239592,-500.0,0.00011916,2]
[396485002,1764988239601,-500.0,0.00011916,2]
[396485003,1764988239610,-500.0,0.00011916,2]
[396485004,1764988239620,-500.0,0.00011916,2]
[396485005,1764988239630,-362.14782324,0.00011916,2]
[396485006,1764988239639,-500.0,0.00011916,2]
[396485007,1764988239649,-500.0,0.00011916,2]
[396485008,1764988239658,-500.0,0.00011916,2]
[396485009,1764988239668,-500.0,0.00011916,2]
[396485010,1764988239677,-500.0,0.00011916,2]
[396485011,1764988239686,-500.0,0.00011916,2]
[396485012,1764988239696,-500.0,0.00011916,2]
[396485013,1764988239706,-500.0,0.00011916,2]
[396485014,1764988239715,-500.0,0.00011916,2]
[396485015,1764988239724,-500.0,0.00011916,2]
[396485016,1764988239733,-500.0,0.00011916,2]
[396485017,1764988239742,-500.0,0.00011916,2]
[396485018,1764988239751,-500.0,0.00011916,2]
[396485019,1764988239760,-500.0,0.00011916,2]
[396485020,1764988239770,-500.0,0.00011916,2]
[396485021,1764988239778,-1587.93,0.00011916,2]
[396485022,1764988239787,-500.0,0.00011916,2]
[396485023,1764988239796,-572.08024051,0.00011916,2]
[396485024,1764988239805,-500.0,0.00011916,2]
[396485025,1764988239814,-645.0,0.00011916,2]
[396485026,1764988239823,-500.0,0.00011916,2]
[396485027,1764988239832,-500.0,0.00011916,2]
[396485028,1764988239841,-500.0,0.00011916,2]
[396485029,1764988239851,-500.0,0.00011916,2]
[396485030,1764988239860,-3888.53,0.00011916,2]
[396485031,1764988239869,-1103.41,0.00011916,2]
[396485032,1764988239878,-500.0,0.00011916,2]
[396485033,1764988239888,-500.0,0.00011916,2]
[396485034,1764988239897,-500.0,0.00011916,2]
[396485035,1764988239906,-500.0,0.00011916,2]
[396485036,1764988239915,-500.0,0.00011916,2]
[396485037,1764988239924,-500.0,0.00011916,2]
[396485038,1764988239933,-8353.28,0.00011916,2]
[396485039,1764988239945,-1129.97,0.00011916,2]
[396485040,1764988239962,-583.52252358,0.00011916,2]
[396485041,1764988239972,-500.0,0.00011916,2]
[396485042,1764988239981,-523.55,0.00011916,2]
[396485043,1764988239990,-1582.29,0.00011916,2]
[396485044,1764988240006,-418.60984447,0.00011916,2]
[396485045,1764988240015,-661.86,0.00011916,2]
[396485046,1764988240023,-500.0,0.00011916,2]
[396485047,1764988240032,-547.4,0.00011916,2]
[396485048,1764988240042,-500.0,0.00011916,2]
[396485049,1764988240051,-500.0,0.00011916,2]
[396485050,1764988240059,-500.0,0.00011916,2]
[396485051,1764988240069,-500.0,0.00011916,2]
[396485053,1764988240078,-523.97,0.00011916,2]
[396485054,1764988240087,-1320.93,0.00011916,2]
[396485056,1764988240096,-500.0,0.00011916,2]
[396485058,1764988240105,-500.0,0.00011916,2]
[396485059,1764988240115,-1387.58,0.00011916,2]
[396485061,1764988240124,-500.0,0.00011916,2]
[396485063,1764988240132,-500.0,0.00011916,2]
[396485064,1764988240142,-844.44,0.00011916,2]
[396485066,1764988240151,-500.0,0.00011916,2]
[396485067,1764988240159,-1086.78,0.00011916,2]
[396485068,1764988240168,-530.43,0.00011916,2]
[396485069,1764988240178,-767.75,0.00011916,2]
[396485071,1764988240187,-4973.85,0.00011916,2]
[396485072,1764988240196,-500.0,0.00011916,2]
[396485074,1764988240205,-500.0,0.00011916,2]
[396485075,1764988240214,-3908.21,0.00011916,2]
[396485076,1764988240223,-500.0,0.00011916,2]
[396485077,1764988240232,-158.64390593,0.00011916,2]
[396485078,1764988240242,-500.0,0.00011916,2]
[396485079,1764988240251,-500.0,0.00011916,2]
[396485080,1764988240259,-500.0,0.00011916,2]
[396485082,1764988240269,-500.0,0.00011916,2]
[396485083,1764988240278,-250.0,0.00012013,2]
[396485084,1764988240288,-500.0,0.00012014,2]
[396485085,1764988240297,-500.0,0.00012014,2]
[396485086,1764988240306,-552.86,0.00012014,2]
[396485087,1764988240316,-1504.71,0.00012014,2]
[396485088,1764988240325,-500.0,0.00012014,2]
[396485089,1764988240334,-1043.82,0.00012014,2]
[396485090,1764988240344,-500.0,0.00012014,2]
[396485091,1764988240353,-702.98,0.00012014,2]
[396485092,1764988240362,-500.0,0.00012014,2]
[396485093,1764988240371,-871.2,0.00012014,2]
[396485094,1764988240380,-500.0,0.00012014,2]
[396485095,1764988240389,-500.0,0.00012014,2]
[396485096,1764988240398,-500.0,0.00012014,2]
[396485097,1764988240407,-500.0,0.00012014,2]
[396485098,1764988240415,-500.0,0.00012014,2]
[396485099,1764988240424,-500.0,0.00012014,2]
[396485100,1764988240434,-500.0,0.00012014,2]
[396485101,1764988240443,-500.0,0.00012014,2]
[396485102,1764988240452,-500.0,0.00012014,2]
[396485103,1764988240461,-1651.56,0.00012014,2]
[396485104,1764988240469,-500.0,0.00012014,2]
[396485105,1764988240479,-500.0,0.00012014,2]
[396485106,1764988240487,-500.0,0.00012014,2]
[396485107,1764988240496,-500.0,0.00012014,2]
[396485108,1764988240505,-500.0,0.00012014,2]
[396485109,1764988240514,-500.0,0.00012014,2]
[396485110,1764988240523,-500.0,0.00012014,2]
[396485111,1764988240532,-500.0,0.00012014,2]
[396485112,1764988240541,-425.48842116,0.00012014,2]
[396485113,1764988240550,-500.0,0.00012014,2]
[396485114,1764988240559,-500.0,0.00012014,2]
[396485115,1764988240568,-221.23775972,0.00012014,2]
[396485116,1764988240577,-500.0,0.00012014,2]
[396485117,1764988240585,-500.0,0.00012014,2]
[396485118,1764988240594,-607.1,0.00012014,2]
[396485119,1764988240603,-500.0,0.00012014,2]
[396485120,1764988240612,-500.0,0.00012017,2]
[396485121,1764988240622,-500.0,0.00012017,2]
[396485122,1764988240632,-500.0,0.00012017,2]
[396485123,1764988240641,-500.0,0.00012017,2]
[396485124,1764988240650,-500.0,0.00012017,2]
[396485125,1764988240659,-500.0,0.00012017,2]
[396485126,1764988240668,-735.81,0.00012017,2]
[396485127,1764988240678,-500.0,0.00012017,2]
[396485128,1764988240687,-500.0,0.00012017,2]
[396485129,1764988240696,-500.0,0.00012017,2]
[396485130,1764988240705,-500.0,0.00012017,2]
[396485131,1764988240714,-500.0,0.00012017,2]
[396485132,1764988240724,-500.0,0.00012017,2]
[396485133,1764988240733,-500.0,0.00012017,2]
[396485134,1764988240742,-500.0,0.00012017,2]
[396485135,1764988240751,-500.0,0.00012187,2]
[396485136,1764988240760,-2918.39,0.00012187,2]
[396485137,1764988240769,-500.0,0.00012187,2]
[396485138,1764988240778,-500.0,0.00012187,2]
[396485139,1764988240787,-2627.07,0.00012187,2]
[396485140,1764988240795,-2382.98,0.00012187,2]
[396485141,1764988240804,-500.0,0.00012187,2]
[396485142,1764988240813,-1473.47,0.00012187,2]
[396485143,1764988240822,-692.45,0.00012187,2]
[396485144,1764988240830,-538.34,0.00012187,2]
[396485145,1764988240839,-500.0,0.00012187,2]
[396485146,1764988240847,-1364.29,0.00012187,2]
[396485147,1764988240857,-500.0,0.00012187,2]
[396485148,1764988240866,-500.0,0.00012187,2]
[396485149,1764988240875,-500.0,0.00012187,2]
[396485150,1764988240884,-511.95,0.00012187,2]
[396485151,1764988240893,-501.44,0.00012188,2]
[396485152,1764988240902,-500.0,0.00012188,2]
[396485153,1764988240911,-500.0,0.00012188,2]
[396485154,1764988240920,-2096.71,0.00012188,2]
[396485155,1764988240929,-500.0,0.00012188,2]
[396485156,1764988240938,-500.0,0.00012188,2]
[396485157,1764988240947,-500.0,0.00012188,2]
[396485158,1764988240957,-500.0,0.00012188,2]
[396485159,1764988240966,-500.0,0.00012188,2]
[396485160,1764988240974,-805.71,0.00012188,2]
[396485161,1764988240983,-1291.78,0.00012188,2]
[396485162,1764988240992,-983.46,0.00012188,2]
[396485163,1764988241001,-500.0,0.00012188,2]
[396485164,1764988241010,-500.0,0.00012188,2]
[396485165,1764988241019,-500.0,0.00012188,2]
[396485166,1764988241029,-500.0,0.00012188,2]
[396485167,1764988241040,-514.31,0.00012188,2]
[396485168,1764988241049,-500.0,0.00012188,2]
[396485169,1764988241058,-643.32,0.00012188,2]
[396485170,1764988241067,-500.0,0.00012188,2]
[396485171,1764988241075,-500.0,0.00012188,2]
[396485172,1764988241084,-500.0,0.00012188,2]
[396485173,1764988241093,-500.0,0.00012188,2]
[396485174,1764988241102,-686.32,0.00012188,2]
[396485175,1764988241111,-1091.3,0.00012188,2]
[396485176,1764988241119,-500.0,0.00012189,2]
[396485177,1764988241129,-1147.44,0.00012189,2]
[396485178,1764988241138,-285.46209365,0.00012189,2]
[396485179,1764988241147,-567.73075506,0.00012189,2]
[396485180,1764988241156,-274.18863083,0.00012189,2]
[396485181,1764988241165,-676.68,0.00012189,2]
[396485182,1764988241175,-500.0,0.00012189,2]
[396485183,1764988241184,-500.0,0.00012189,2]
[396485184,1764988241193,-500.0,0.00012189,2]
[396485185,1764988241202,-500.0,0.00012189,2]
[396485186,1764988241211,-500.0,0.00012189,2]
[396485187,1764988241220,-1151.22,0.00012189,2]
[396485188,1764988241229,-500.0,0.00012189,2]
[396485189,1764988241239,-706.92,0.00012189,2]
[396485190,1764988241247,-500.0,0.00012189,2]
[396485191,1764988241256,-500.0,0.00012189,2]
[396485192,1764988241265,-500.0,0.00012189,2]
[396485193,1764988241274,-500.0,0.00012189,2]
[396485194,1764988241283,-500.0,0.00012189,2]
[396485195,1764988241292,-500.0,0.00012189,2]
[396485196,1764988241301,-500.0,0.00012189,2]
[396485197,1764988241310,-1530.41,0.00012189,2]
[396485198,1764988241319,-500.0,0.00012189,2]
[396485199,1764988241329,-544.76,0.00012189,2]
[396485200,1764988241338,-1428.03,0.00012189,2]
[396485201,1764988241525,-646.01,0.00012189,2]
[396485202,1764988241535,-500.0,0.00012189,2]
[396485203,1764988241544,-500.0,0.00012189,2]
[396485204,1764988241552,-500.0,0.00012189,2]
[396485205,1764988241562,-500.0,0.00012189,2]
[396485206,1764988241571,-500.0,0.00012189,2]
[396485207,1764988241584,-500.0,0.00012189,2]
[396485208,1764988241592,-500.0,0.00012189,2]
[396485209,1764988241601,-500.0,0.00012189,2]
[396485210,1764988241610,-500.0,0.00012189,2]
[396485211,1764988241620,-500.0,0.00012189,2]
[396485212,1764988241629,-500.0,0.00012189,2]
[396485213,1764988241638,-500.0,0.00012189,2]
[396485214,1764988241647,-1009.19,0.00012189,2]
[396485215,1764988241656,-500.0,0.00012189,2]
[396485216,1764988241666,-500.0,0.00012189,2]
[396485217,1764988241675,-500.0,0.00012189,2]
[396485218,1764988241684,-500.0,0.00012189,2]
[396485219,1764988241694,-731.6,0.00012189,2]
[396485220,1764988241703,-661.56,0.00012189,2]
[396485221,1764988241712,-500.0,0.00012189,2]
[396485222,1764988241721,-676.13,0.00012189,2]
[396485223,1764988241730,-573.24,0.00012189,2]
[396485224,1764988241739,-500.0,0.00012189,2]
[396485225,1764988241748,-500.0,0.00012189,2]
[396485226,1764988241757,-2445.7,0.00012189,2]
[396485227,1764988241766,-500.0,0.00012189,2]
[396485228,1764988241774,-1427.77,0.00012189,2]
[396485229,1764988241783,-500.0,0.00012189,2]
[396485230,1764988241792,-500.0,0.00012189,2]
[396485231,1764988241801,-500.0,0.00012189,2]
[396485232,1764988241809,-500.0,0.00012189,2]
[396485233,1764988241818,-500.0,0.00012189,2]
[396485234,1764988241827,-500.72,0.00012189,2]
[396485235,1764988241836,-500.0,0.00012189,2]
[396485236,1764988241844,-4806.28,0.00012189,2]
[396485237,1764988241853,-500.0,0.00012189,2]
[396485238,1764988241862,-589.52,0.00012189,2]
[396485239,1764988241870,-500.0,0.00012189,2]
[396485240,1764988241879,-1305.6,0.00012189,2]
[396485241,1764988241888,-500.0,0.00012189,2]
[396485242,1764988241896,-1517.97,0.00012189,2]
[396485243,1764988241905,-603.63,0.00012189,2]
[396485244,1764988241914,-500.0,0.00012189,2]
[396485245,1764988241922,-500.0,0.00012189,2]
[396485246,1764988241931,-500.0,0.00012189,2]
[396485247,1764988241940,-2262.64,0.00012189,2]
[396485248,1764988241949,-500.0,0.00012189,2]
[396485249,1764988241957,-500.0,0.00012189,2]
[396485250,1764988241967,-500.0,0.0001219,2]
[396485251,1764988241976,-500.0,0.0001219,2]
[396485252,1764988241985,-205.01214513,0.0001219,2]
[396485253,1764988241994,-500.0,0.0001219,2]
[396485254,1764988242004,-500.0,0.0001219,2]
[396485255,1764988242013,-500.0,0.0001219,2]
[396485256,1764988242022,-500.0,0.0001219,2]
[396485257,1764988242031,-500.0,0.0001219,2]
[396485258,1764988242040,-500.0,0.0001219,2]
[396485259,1764988242049,-500.0,0.0001219,2]
[396485260,1764988242059,-500.0,0.0001219,2]
[396485261,1764988242068,-500.0,0.0001219,2]
[396485262,1764988242077,-500.0,0.0001219,2]
[396485263,1764988242086,-500.0,0.0001219,2]
[396485264,1764988242095,-500.0,0.0001219,2]
[396485265,1764988242104,-500.0,0.0001219,2]
[396485266,1764988242113,-243.38078066,0.0001219,2]
[396485267,1764988242122,-500.0,0.0001219,2]
[396485268,1764988242132,-500.0,0.0001219,2]
[396485269,1764988242141,-275.93647797,0.0001219,2]
[396485270,1764988242150,-456.61811785,0.0001219,2]
[396485271,1764988242159,-500.0,0.0001219,2]
[396485272,1764988242168,-500.0,0.0001219,2]
[396485273,1764988242177,-500.0,0.0001219,2]
[396485274,1764988242187,-500.0,0.0001219,2]
[396485275,1764988242196,-500.0,0.0001219,2]
[396485276,1764988242206,-500.0,0.0001219,2]
[396485277,1764988242215,-500.0,0.0001219,2]
[396485278,1764988242224,-500.0,0.0001219,2]
[396485279,1764988242233,-500.0,0.0001219,2]
[396485280,1764988242242,-500.0,0.0001219,2]
[396485281,1764988242251,-500.0,0.0001219,2]
[396485282,1764988242261,-500.0,0.0001219,2]
[396485283,1764988242270,-500.0,0.0001219,2]
[396485284,1764988242279,-500.0,0.0001219,2]
[396485285,1764988242289,-378.33460476,0.0001219,2]
[396485286,1764988242305,-121.66539524,0.0001219,2]
[396485287,1764988242315,-500.0,0.0001219,2]
[396485288,1764988242324,-500.0,0.0001219,2]
[396485289,1764988242333,-500.0,0.0001219,2]
[396485290,1764988242342,-500.0,0.0001219,2]
[396485291,1764988242351,-500.0,0.0001219,2]
[396485292,1764988242360,-1587.93,0.0001219,2]
[396485293,1764988242370,-500.0,0.0001219,2]
[396485294,1764988242379,-500.0,0.0001219,2]
[396485295,1764988242388,-645.0,0.0001219,2]
[396485296,1764988242398,-500.0,0.0001219,2]
[396485297,1764988242407,-500.0,0.0001219,2]
[396485298,1764988242416,-500.0,0.0001219,2]
[396485299,1764988242425,-500.0,0.0001219,2]
[396485300,1764988242434,-391.588095,0.0001219,2]
[396485301,1764988242445,-3496.941905,0.0001219,2]
[396485302,1764988242454,-23.098095,0.0001219,2]
[396485304,1764988242589,-1080.311905,0.0001219,2]
[396485305,1764988242598,-500.0,0.0001219,2]
[396485307,1764988242607,-500.0,0.0001219,2]
[396485309,1764988242615,-500.0,0.0001219,2]
[396485311,1764988242625,-500.0,0.0001219,2]
[396485312,1764988242634,-500.0,0.0001219,2]
[396485313,1764988242643,-283.93109333,0.0001219,2]
[396485315,1764988242969,-216.06890667,0.0001219,2]
[396485316,1764988242978,-362.3310794,0.0001219,2]
[396485350,1764988643957,761.45041389,0.00011255,2]
[396485351,1764988683493,206.83,0.00010989,2]
[396485352,1764988683759,206.81,0.00010989,2]
[396485353,1764988715142,308.37897578,0.0001313,9]
[396485354,1764988832388,5000.0,0.00011255,2]
[396485355,1764988855527,664.363907,0.00011255,2]
[396485356,1764988855552,4335.636093,0.00011255,2]
[396485357,1764988878413,5000.0,0.00011255,2]
[396485358,1764988890945,150.0,7.21e-05,2]
[396485359,1764988891354,150.0,7.866e-05,2]
[396485360,1764988891761,150.0,8.521e-05,2]
[396485361,1764988892187,150.0,9.177e-05,2]
[396485362,1764988892605,64.373907,9.832e-05,2]
[396485363,1764988892627,85.626093,9.832e-05,2]
[396485364,1764988892999,150.0,0.00010488,2]
[396485365,1764988893418,150.0,0.00011143,2]
[396485366,1764988901826,5000.0,0.00011255,2]
[396485367,1764988924261,4614.383907,0.00011255,2]
[396485368,1764988924284,385.616093,0.00011255,2]
[396485370,1764988947265,3710.72806794,0.00011255,2]
[396485371,1764988959630,150.0,7.215e-05,2]
[396485372,1764988960055,150.0,7.871e-05,2]
[396485373,1764988960457,150.0,8.527e-05,2]
[396485374,1764988961342,150.0,9.183e-05,2]
[396485375,1764988961755,150.0,9.839e-05,2]
[396485376,1764988962188,150.0,0.00010495,2]
[396485377,1764988962604,150.0,0.00011151,2]
[396485378,1764988970177,1900.0,0.00011255,2]
[396485379,1764988983039,171.32,0.000109,2]
[396485381,1764989028776,150.0,7.226e-05,2]
[396485382,1764989029183,150.0,7.883e-05,2]
[396485383,1764989029607,150.0,8.54e-05,2]
[396485384,1764989030023,150.0,9.197e-05,2]
[396485385,1764989030458,150.0,9.854e-05,2]
[396485386,1764989031363,150.0,0.00010511,2]
[396485387,1764989031782,150.0,0.00011168,2]
[396485388,1764989045208,171.31,0.000109,2]
[396485390,1764989098764,150.0,7.232e-05,2]
[396485391,1764989099365,150.0,7.889e-05,2]
[396485392,1764989099612,150.0,8.547e-05,2]
[396485393,1764989104564,171.32,0.000106,2]
[396485395,1764989163941,171.31,0.000109,2]
[396485396,1764989204568,160.47,0.0001,2]
[396485397,1764989205436,160.47,0.0001,2]
[396485398,1764989206485,160.47,0.0001,2]
[396485399,1764989207454,160.47,0.0001,2]
[396485402,1764989342550,250.0,0.00013104,3]
[396485432,1764989431867,-2370.0,0.00011443,2]
[396485470,1764989437953,-745.20190271,0.00011443,2]
[396485483,1764989438060,-610.79809729,0.00011443,2]
[396485485,1764989438071,-244.0,0.00011443,2]
[396485486,1764989438081,-177.77831253,0.00011477,2]
[396485488,1764989438090,-186.11988269,0.00011708,2]
[396485491,1764989438100,-3471.4137962,0.00011712,2]
[396485512,1764989438290,-1071.73680923,0.00011712,2]
[396485514,1764989438299,-261.16734906,0.00011798,2]
[396485516,1764989438309,-304.23898023,0.00011798,2]
[396485518,1764989438318,-160.87235759,0.00011798,2]
[396485520,1764989438327,-500.0,0.00011798,2]
[396485522,1764989438336,-534.72178667,0.00011798,2]
[396485524,1764989438346,-226.32963465,0.00011798,2]
[396485526,1764989438354,-2675.19,0.00011798,2]
[396485527,1764989438363,-500.0,0.00011798,2]
[396485529,1764989438372,-500.0,0.00011798,2]
[396485532,1764989438382,-500.0,0.00011798,2]
[396485534,1764989438392,-2002.36,0.00011798,2]
[396485536,1764989438401,-1350.68,0.00011798,2]
[396485538,1764989438410,-2408.15,0.00011798,2]
[396485540,1764989438420,-500.0,0.00011798,2]
[396485541,1764989438429,-500.0,0.00011798,2]
[396485544,1764989438438,-384.0180686,0.00011798,2]
[396485656,1764989443024,-250.7319314,0.00011798,2]
[396485657,1764989443036,-500.0,0.00011798,2]
[396485658,1764989443251,-500.0,0.00011798,2]
[396485659,1764989443261,-500.0,0.00011798,2]
[396485660,1764989443270,-3268.83927121,0.00011799,2]
[396485669,1764989744486,5000.0,0.00011255,2]
[396485671,1764989766322,4186.82,0.00011255,2]
[396485672,1764989766345,813.18,0.00011255,2]
[396485673,1764989788040,5000.0,0.00011255,2]
[396485674,1764989796184,237.41073228,0.00011255,2]
[396485675,1764989811119,2564.2322416,0.00011255,2]
[396485678,1764989934191,1385.18702612,0.00011255,2]
[396485679,1764989934214,3614.81297388,0.00011255,2]
[396485680,1764990137670,2725.79832399,0.00011255,2]
[396485681,1764990154535,3659.39870213,0.00011255,2]
[396485682,1764990154560,1340.60129787,0.00011255,2]
[396485683,1764990163141,2274.20167601,0.00011255,2]
[396485684,1764990179350,5000.0,0.00011255,2]
[396485685,1764990187168,1385.20702612,0.00011255,2]
[396485686,1764990187191,3614.79297388,0.00011255,2]
[396485688,1764990198646,171.72663283,0.00011076,2]
[396485689,1764990201616,308.79883116,0.00011076,2]
[396485690,1764990202346,5000.0,0.00011255,2]
[396485691,1764990224641,904.69156213,0.00011255,2]
[396485692,1764990224664,4095.30843787,0.00011255,2]
[396485693,1764990246771,5000.0,0.00011255,2]
[396485694,1764990269581,904.70156213,0.00011255,2]
[396485695,1764990269604,4095.29843787,0.00011255,2]
[396485696,1764990292381,5000.0,0.00011255,2]
[396485697,1764990315303,904.71156213,0.00011255,2]
[396485698,1764990315327,4095.28843787,0.00011255,2]
[396485701,1764990339199,4074.00886924,0.00011255,2]
[396485702,1764990347499,2697.49740542,0.00011255,2]
[396485704,1764990363588,357.0,0.000203,120]
[396485705,1764990396466,150.0,7.319e-05,2]
[396485721,1764990483441,366.78,0.00010989,2]
[396485722,1764990483789,366.78,0.00010989,2]
[396485723,1764990484079,366.76,0.00010989,2]
[396485724,1764990492146,5000.0,0.00011255,2]
[396485725,1764990526427,150.0,7.305e-05,2]
[396485726,1764990526853,150.0,7.969e-05,2]
[396485727,1764990527283,198.78,8.633e-05,2]
[396485728,1764990527706,265.04,9.297e-05,2]
[396485729,1764990528098,288.37259458,9.961e-05,2]
[396485730,1764990528120,42.92740542,9.961e-05,2]
[396485731,1764990528814,397.56,0.00010625,2]
[396485732,1764990542577,194.64,0.000106,2]
[396485733,1764990542822,250.0,0.00013103,3]
[396485734,1764990604134,150.0,7.32e-05,2]
[396485735,1764990605064,150.0,7.985e-05,2]
[396485736,1764990605488,161.0,8.651e-05,2]
[396485737,1764990605898,214.67,9.316e-05,2]